Workbook

Sheet Enoncé
A1: Evaluation au 01/9/21
B3: Taux coupon | C3: Échéance | D3: RBT | E3: Prix | F3: Rdt | I3: QUESTIONS :
A4: 1 | B4: 0.029 | C4: 2037-09-01 | D4: IN FINE | E4: 1.0038 | F4: ? | K4: Calculer le rendement actuariel des titres
A5: 2 | C5: 2065-09-01 | D5: ZC | E5: ? | F5: 0.0401 | K5: Automatiser la procédure avec un pricer (affichage des flux de paiement)
A6: 3 | B6: ? | C6: 2041-09-01 | D6: AC | E6: 1.1357 | F6: 0.0364 | K6: Automatiser en écrivant des macro fonctions ( x inputs --> 1 output scalaire)
A7: 4 | B7: 0.036 | C7: 2025-09-01 | D7: SEA | E7: ? | F7: 0.0189 | K7: Calculer les mesures d'âge et de volatilité (en macro fonction ou en VBA)
A8: 5 | B8: 0.053 | C8: 2033-09-01 | D8: IN FINE | E8: ? | F8: 0.0253 | L8: AGE | O8: VOLATILITE
A9: 6 | B9: 0.032 | C9: 2032-09-01 | D9: AC | E9: 1.0403 | F9: ? | L9: Maturité | O9: Variabilité
A10: 7 | B10: 0.048 | C10: 2026-09-01 | D10: AC | E10: ? | F10: 0.0198 | L10: Vie Probable | O10: Sensibilié
A11: 8 | B11: 0.05 | C11: ? | D11: IN FINE | E11: 1.2055 | F11: 0.0243 | L11: Délai de récupération | O11: Elasticité
A12: 9 | B12: 0.033 | D12: RP | E12: 0.7569 | F12: ? | L12: Vie Moyenne | O12: Convexité
A13: 10 | B13: 0.06 | C13: 2057-09-01 | D13: IN FINE | E13: 1.4101 | F13: ? | L13: Vie Moyenne Pondérée | O13: Duration 2
A14: 11 | C14: 2029-09-01 | D14: ZC | E14: ? | F14: 0.0225 | L14: Échéance Moyenne
A15: 12 | B15: ? | C15: 2043-09-01 | D15: IN FINE | E15: 1.0373 | F15: 0.0326 | L15: Duration Macaulay
A16: 13 | B16: 0.043 | C16: 2036-09-01 | D16: SEA | E16: 1.1121 | F16: ?
A17: 14 | C17: 2050-09-01 | D17: ZC | E17: 0.3636 | F17: ?
A18: 15 | C18: ? | D18: ZC | E18: 0.7163 | F18: 0.026
A19: 16 | B19: ? | D19: RP | E19: 0.5023 | F19: 0.0438
A20: 17 | C20: 2025-09-01 | D20: ZC | E20: 0.9257 | F20: ?
A21: 18 | B21: 0.0485 | C21: 2024-09-01 | D21: IN FINE | E21: ? | F21: 0.0182

Sheet Calcul Rendement
A1: Evaluation au 01/09/21 | I1: méthode 1 | K1: méthode 2 Génération automatique des flux | Q1: Méthode 3 sans les flux
A3: 2021-09-01 | B3: Taux coupon | C3: Échéance | D3: RBT | E3: Prix | F3: N | G3: Rdt | I3: Calcul Rdt classique IF | N3: 0 | O3: =L7 -> IN FINE
A4: 1 | B4: 0.029 | C4: 2037-09-01 | D4: IN FINE | E4: 1.0038 | F4: 16 | G4: 0.0287 | I4: =E4 -> 1.0038 | N4: 1 | O4: =IF($O$3="RP",-$L$9,IF(N4>$L$10,"",IF($O$3="IN FINE",-$L$9-IF(N4=$L$10,1,0),IF($O$3="AC",-$L$9/(1-(1+$L$9)^(-$L$10)),IF($O$3="SEA",-1/$L$10-$L$9*(1-N3/$L$10),IF($O$3="ZC",IF(N4=$L$10,1,""),"erreur")))))) -> -0.029
A5: 2 | C5: 2065-09-01 | D5: ZC | E5: =C69 -> 0.1772947026 | F5: 44 | G5: 0.0401 | I5: =-B4 -> -0.029 | J5: 1 | K5: Numéro | L5: 1 | N5: 2 | O5: =IF($O$3="RP",-$L$9,IF(N5>$L$10,"",IF($O$3="IN FINE",-$L$9-IF(N5=$L$10,1,0),IF($O$3="AC",-$L$9/(1-(1+$L$9)^(-$L$10)),IF($O$3="SEA",-1/$L$10-$L$9*(1-N4/$L$10),IF($O$3="ZC",IF(N5=$L$10,1,""),"erreur")))))) -> -0.029
A6: 3 | B6: =C86 -> 0.05098257945 | C6: 2041-09-01 | D6: AC | E6: 1.1357 | F6: 20 | G6: 0.0364 | I6: =I5 -> -0.029 | J6: 2 | N6: 3 | O6: -0.029 | Q6: =R_IF( prix ; coupon ; durée )
A7: 4 | B7: 0.036 | C7: 2025-09-01 | D7: SEA | E7: =C95 -> 1.041185926 | F7: =F91 -> 4 | G7: 0.0189 | I7: =I6 -> -0.029 | J7: 3 | K7: Type | L7: =INDEX(D4:D21,L5) -> IN FINE | N7: 4 | O7: -0.029 | R7: =rdt(E4,B4,F4,D4) -> 0.02869973907
A8: 5 | B8: 0.053 | C8: 2033-09-01 | D8: IN FINE | E8: =C103 -> 1.283624643 | F8: 12 | G8: 0.0253 | I8: -0.029 | J8: 4 | K8: Prix | L8: =INDEX(E4:E21,L5) -> 1.0038 | N8: 5 | O8: -0.029
A9: 6 | B9: 0.032 | C9: 2032-09-01 | D9: AC | E9: 1.0403 | F9: 11 | G9: 0.0249 | I9: -0.029 | J9: 5 | K9: coupon | L9: =IF(L7="ZC",0,INDEX(B4:B21,L5)) -> 0.029 | N9: 6 | O9: -0.029 | Q9: Si la macro n'est pas activée,
A10: 7 | B10: 0.048 | C10: 2026-09-01 | D10: AC | E10: =D134 -> 1.083307139 | F10: 5 | G10: 0.0198 | I10: -0.029 | J10: 6 | K10: Durée | L10: =IF(L7="RP",0,YEAR(INDEX(C4:C21,L5))-YEAR(A3)) -> 16 | N10: 7 | O10: -0.029 | Q10: modifier les paramètres de sécurité
A11: 8 | B11: 0.05 | C11: =D144 -> 2029-09-01 | D11: IN FINE | E11: 1.2055 | F11: 9 | G11: 0.0243 | I11: -0.029 | J11: 7 | K11: Taux | L11: =IF(L7="ZC",L8^(-1/L10)-1,IF(L7="RP",L9/L8,IRR((L8,O4:INDEX($O$4:$O$63,L10)),L9))) -> 0.02870047624 | N11: 8 | O11: -0.029
A12: 9 | B12: 0.033 | D12: RP | E12: 0.7569 | G12: 0.04359889021 | I12: -0.029 | J12: 8 | N12: 9 | O12: -0.029
A13: 10 | B13: 0.06 | C13: 2057-09-01 | D13: IN FINE | E13: 1.4101 | F13: 36 | G13: 0.0387 | I13: -0.029 | J13: 9 | N13: 10 | O13: -0.029
A14: 11 | C14: 2029-09-01 | D14: ZC | E14: ? | F14: 8 | G14: 0.0225 | I14: -0.029 | J14: 10 | N14: 11 | O14: -0.029 | Q14: L'utilisation du VBA est aussi possible
A15: 12 | B15: ? | C15: 2043-09-01 | D15: IN FINE | E15: 1.0373 | F15: 22 | G15: 0.0326 | I15: -0.029 | J15: 11 | N15: 12 | O15: -0.029
A16: 13 | B16: 0.043 | C16: 2036-09-01 | D16: SEA | E16: 1.1121 | G16: 0.0268 | I16: -0.029 | J16: 12 | N16: 13 | O16: -0.029 | Q16: Pour lire la macro Rdt taper Alt F11
A17: 14 | C17: 2050-09-01 | D17: ZC | E17: 0.3636 | F17: 29 | G17: 0.0355 | I17: -0.029 | J17: 13 | N17: 14 | O17: -0.029 | Q17: Ouvrir le dossier Module1
A18: 15 | C18: ? | D18: ZC | E18: 0.7163 | F18: 13 | G18: 0.026 | I18: -0.029 | J18: 14 | N18: 15 | O18: -0.029
A19: 16 | B19: ? | D19: RP | E19: 0.5023 | G19: 0.04379852678 | I19: -0.029 | J19: 15 | N19: 16 | O19: -1.029
A20: 17 | C20: 2025-09-01 | D20: ZC | E20: 0.9257 | F20: 4 | G20: 0.0195 | I20: =I19-1 -> -1.029 | J20: 16 | N20: 17
A21: 18 | B21: 0.0485 | C21: 2024-09-01 | D21: IN FINE | E21: ? | F21: 3 | G21: 0.0182 | N21: 18
I22: =IRR((I4:I20),B4) -> 0.02870047624 | N22: 19 | R22: =1.0401^-44 -> 0.1772947026
N23: 20
A24: Le rendement actuariel peut aussi s'obtenir par | N24: 21
N25: 22
B26: interpolation | N26: 23
N27: 24
N28: 25
N29: 26
B30: approximation | N30: 27
N31: 28
N32: 29
N33: 30
N34: 31
A35: Emprunt N° 1 | C35: Calcul du rendement actuariel d'un emprunt In Fine | N35: 32
N36: 33
B37: a) calcul de la durée entre 1/9/37 et 1/9/21 | N37: 34
N38: 35
C39: =YEAR(C4)-YEAR(A3) -> 16 | N39: 36
N40: 37
B41: b) calcul du rendement actuariel avec la fonction TRI | N41: 38
N42: 39
B43: 0 | C43: =-E4 -> -1.0038 | D43: Vo | N43: 40
B44: 1 | C44: =$B$4 -> 0.029 | D44: i | N44: 41
B45: 2 | C45: =$B$4 -> 0.029 | D45: i | N45: 42
B46: 3 | C46: 0.029 | D46: i | N46: 43
B47: 4 | C47: 0.029 | D47: i | N47: 44
B48: 5 | C48: 0.029 | D48: i | N48: 45
B49: 6 | C49: 0.029 | D49: i | N49: 46
B50: 7 | C50: 0.029 | D50: i | N50: 47
B51: 8 | C51: 0.029 | D51: i | N51: 48
B52: 9 | C52: 0.029 | D52: i | N52: 49
B53: 10 | C53: 0.029 | D53: i | N53: 50
B54: 11 | C54: 0.029 | D54: i | N54: 51
B55: 12 | C55: 0.029 | D55: i | N55: 52
B56: 13 | C56: 0.029 | D56: i | N56: 53
B57: 14 | C57: 0.029 | D57: i | N57: 54
B58: 15 | C58: 0.029 | D58: i | N58: 55
B59: 16 | C59: =1+$B$4 -> 1.029 | D59: 1 + i | N59: 56
N60: 57
B61: TRI | C61: =IRR(C43:C59) -> 0.02870047624 | N61: 58
N62: 59
A63: Emprunt N° 2 | C63: Trouver le prix (Vo) d'un emprunt Zéro Coupon | N63: 60
B65: a) calcul de la durée entre 1/9/65 et le 1/9/21 | F65: =YEAR(C5)-YEAR(A3) -> 44
B67: b) le prix --> | C67: Vo = 1 / ( 1 + r ) n
B69: Vo = | C69: =1/(1+G5)^F65 -> 0.1772947026
A72: Emprunt N° 3 | C72: Trouver le taux de coupon (i) d'un emprunt remboursé par Annuités Constantes
B74: a) calcul de la durée entre 1/9/41 et le 1/9/21 | F74: =YEAR(C6)-YEAR(A3) -> 20
B76: b) calcul de l'AC AC = Vo [ ( 1 - (1 + r)-n ]/ r | F76: =E6*G6/(1-(1+G6)^-F74) -> 0.08092469088
B78: c) recherche de i par estimation
C79: comme Vo est > 100% alors i > r
C80: AC = i / [ 1 -(1 + i)-n ]
C82: test sur i | D82: AC | E82: Vo
C83: 0.05 | D83: =C83/(1-(1+C83)^-F74) -> 0.08024258719 | E83: =(C83/G6)*(1-(1+G6)^-F74)/(1-(1+C83)^-F74) -> 1.126127333
C84: 0.06 | D84: =C84/(1-(1+C84)^-F74) -> 0.08718455698 | E84: =(C84/G6)*(1-(1+G6)^-F74)/(1-(1+C84)^-F74) -> 1.223551184
B86: interpolation | C86: =C83+(C84-C83)*(E83-E6)/(E83-E84) -> 0.05098257945
A89: Emprunt N° 4 | C89: Recherche du prix pour un emprunt SEA
B91: a) calcul de la durée entre 1/9/25 et le 1/9/21 | F91: =YEAR(C7)-YEAR(A3) -> 4
B93: b) Vo = (i/r) + [ (r-i)/rn ] * [ (1 - (1+r)-n ] / r
B95: Vo = | C95: =(B7/G7)+((G7-B7)/(G7*F91))*(1-(1+G7)^-F91)/G7 -> 1.041185926
A97: Emprunt N° 5 | C97: Trouver le prix d'un In Fine
B99: a) calcul de la durée entre 1/9/33 et le 1/9/21 | F99: =YEAR(C8)-YEAR(A3) -> 12
B101: b) Vo = (i/r) + [ (r-i)/r ] * (1+r)-n
B103: Vo = | C103: =(B8/G8)+((G8-B8)/G8)*(1+G8)^-F99 -> 1.283624643
A105: Emprunt N° 6 | C105: Recherche du rendement (r ) pour un AC
B107: a) calcul de la durée entre 1/9/32 et le 1/9/21 | F107: =YEAR(C9)-YEAR(A3) -> 11
B109: b) calcul de l'AC | D109: AC = i / [ 1 -(1 + i)-n ] | F109: =B9/(1-(1+B9)^-F107) -> 0.1092781179
B111: b) calcul du rendement actuariel avec la fonction TRI
C113: 0 | D113: =-E9 -> -1.0403
C114: 1 | D114: =$F$109 -> 0.1092781179
C115: 2 | D115: =$F$109 -> 0.1092781179
C116: 3 | D116: 0.1092781179
C117: 4 | D117: 0.1092781179
C118: 5 | D118: 0.1092781179
C119: 6 | D119: 0.1092781179
C120: 7 | D120: 0.1092781179
C121: 8 | D121: 0.1092781179
C122: 9 | D122: 0.1092781179
C123: 10 | D123: 0.1092781179
C124: 11 | D124: 0.1092781179
C126: TRI | D126: =IRR(D113:D124) -> 0.02489634455
A128: Emprunt N° 7 | C128: Recherche du prix (Vo) pour un AC
B130: a) calcul de la durée entre 1/9/26 et le 1/9/21 | F130: =YEAR(C10)-YEAR(A3) -> 5
B132: b) calcul de Vo | D132: Vo = (i/r) * [ (1 - (1+r)-n ] / [ (1 - (1+i)-n ]
C134: Vo = | D134: =(B10/G10)*(1-(1+G10)^-F130)/(1-(1+B10)^-F130) -> 1.083307139
A136: Emprunt N° 8 | C136: Recherche de la date d'un IF
B138: a) recherche de n
C140: Vo = i/r + ((r-i)/r)* (1+r)-n
C142: n = [ ln [ (r-i)/(rVo-i) ] / ln(1+r) | F142: =LN((G11-B11)/(G11*E11-B11))/LN(1+G11) -> 8.998563201
B144: b) calcul de la date | D144: =DATE(YEAR(A3)+F142,9,1) -> 2029-09-01
A146: Emprunt N° 9 & +

Sheet Age_Volat
F1: ∞ | H1: DIFFERENTES MESURES DE L'AGE D'UN TITRE | P1: MESURES de VOLATILITE | W1: +/- value (si r +1%)
B2: i | C2: Typ | D2: Vo | E2: n | F2: r | H2: Maturité | I2: Age_Vpr | J2: Age_Dre | K2: Age_Vmo | L2: Age_Vmp | M2: Age_Ech | N2: Age_Dur | P2: Ris_Var | Q2: Ris_Sen | R2: Ris_Ela | S2: CVX | T2: D² | U2: M² | W2: Est Dur | X2: Est Cvx | Y2: Réel
A3: 1 | B3: 0.029 | C3: IN FINE | D3: 1.0038 | E3: 16 | F3: 0.0287 | H3: =IF(ISNUMBER(E3),E3,0) -> 16 | I3: =Age_Vpr(B3,E3,C3) -> 16 | J3: =Age_Dre(B3,E3,C3) -> 16 | K3: =Age_Vmo(B3,E3,C3) -> 16 | L3: =Age_Vmp(B3,E3,C3) -> 13.62295082 | M3: =Age_Ech(B3,E3,F3,C3) -> 13.33670234 | N3: =Age_Du1(B3,E3,F3,C3) -> 13.03143813 | P3: =Ris_Var(B3,E3,F3,C3) -> -12.71608488 | Q3: =Ris_Sen(B3,E3,F3,C3) -> -12.66787026 | R3: =Ris_Ela(B3,E3,F3,C3) -> -13.03143813 | S3: =Ris_Cvx(B3,E3,F3,C3) -> 205.7896826 | T3: =Ris_Du2(B3,E3,F3,C3) -> 192.7582444 | U3: =Ris_M2(B3,E3,F3,C3) -> 22.93986461 | W3: =-N3*(1%)/(1+F3) -> -0.1266787026 | X3: =W3+(S3/2)*((1%/(1+F3))^2) -> -0.116955348 | Y3: =Var_Rel(B3,E3,F3,C3) -> -0.1174778869
A4: 2 | C4: ZC | D4: 0.1773 | E4: 44 | F4: 0.0401 | H4: =IF(ISNUMBER(E4),E4,0) -> 44 | I4: =Age_Vpr(B4,E4,C4) -> 44 | J4: =Age_Dre(B4,E4,C4) -> 44 | K4: =Age_Vmo(B4,E4,C4) -> 44 | L4: =Age_Vmp(B4,E4,C4) -> 44 | M4: =Age_Ech(B4,E4,F4,C4) -> 44 | N4: =Age_Du1(B4,E4,F4,C4) -> 44 | P4: =Ris_Var(B4,E4,F4,C4) -> -7.500208551 | Q4: =Ris_Sen(B4,E4,F4,C4) -> -42.30362465 | R4: =Ris_Ela(B4,E4,F4,C4) -> -44 | S4: =Ris_Cvx(B4,E4,F4,C4) -> 1980 | T4: =Ris_Du2(B4,E4,F4,C4) -> 1936 | U4: =Ris_M2(B4,E4,F4,C4) -> 0 | W4: =-N4*(1%)/(1+F4) -> -0.4230362465 | X4: =W4+(S4/2)*((1%/(1+F4))^2) -> -0.331522781 | Y4: =Var_Rel(B4,E4,F4,C4) -> -0.343620109
A5: 3 | B5: 0.051 | C5: AC | D5: 1.1357 | E5: 20 | F5: 0.0364 | H5: 20 | I5: 12.39083807 | J5: 12.35721715 | K5: 12.12720352 | L5: 10.5 | M5: 9.908122175 | N5: =Age_Du1(B5,E5,F5,C5) -> 9.321241158 | P5: -10.21429127 | Q5: -8.993864491 | R5: -9.321241158 | S5: 128.6215773 | T5: 119.3003362 | U5: 32.41479943 | W5: -0.08993864491 | X5: -0.08395137238 | Y5: -0.08425764257
A6: 4 | B6: 0.036 | C6: SEA | D6: 1.0412 | E6: 4 | F6: 0.0189 | H6: 4 | I6: 2 | J6: 3.347490347 | K6: 2.5 | L6: 2.458715596 | M6: 2.447033964 | N6: 2.435357578 | P6: -2.488625022 | Q6: -2.390183117 | R6: -2.435357578 | S6: 9.612938466 | T6: 7.177580888 | U6: 1.246614355 | W6: -0.02390183117 | X6: -0.02343885031 | Y6: -0.02344661724
A7: 5 | B7: 0.053 | C7: IN FINE | D7: 1.2836 | E7: 12 | F7: 0.0253 | H7: 12 | I7: 12 | J7: 12 | K7: 12 | L7: 9.861858191 | M7: 9.708383286 | N7: 9.549090669 | P7: -11.95498693 | Q7: -9.313460128 | R7: -9.549090669 | S7: 113.9511694 | T7: 104.4020788 | U7: 13.21694616 | W7: -0.09313460128 | X7: -0.08771475616 | Y7: -0.08794254312
A8: 6 | B8: 0.032 | C8: AC | D8: 1.0403 | E8: 11 | F8: 0.0249 | H8: 11 | I8: 5.97405312 | J8: 9.150962876 | K8: 6.314353026 | L8: 6 | M8: 5.877100308 | N8: 5.754351523 | P8: -5.840695707 | Q8: -5.614549247 | R8: -5.754351523 | S8: 48.83011999 | T8: 43.07576847 | U8: 9.963207015 | W8: -0.05614549247 | X8: -0.05382117841 | Y8: -0.05389733551
A9: 7 | B9: 0.048 | C9: AC | D9: 1.0833 | E9: 5 | F9: 0.0198 | H9: 5 | I9: 2.646176969 | J9: 4.353517676 | K9: 3.093677976 | L9: 3 | M9: 2.980395103 | N9: 2.960793471 | P9: -3.145174255 | Q9: -2.903307973 | R9: -2.960793471 | S9: 13.72609235 | T9: 10.76529888 | U9: 1.9990009 | W9: -0.02903307973 | X9: -0.0283731664 | Y9: -0.02838583388
A10: 8 | B10: 0.05 | C10: IN FINE | D10: 1.2055 | E10: 9 | F10: 0.0243 | H10: 9 | I10: 9 | J10: 9 | K10: 9 | L10: 7.75862069 | M10: 7.690502506 | N10: 7.62018844 | P10: -8.968428348 | Q10: -7.439410759 | R10: -7.62018844 | S10: 71.72956295 | T10: 64.10937451 | U10: 6.042102649 | W10: -0.07439410759 | X10: -0.07097577871 | Y10: -0.07109106802
A11: 9 | B11: 0.033 | C11: RP | D11: 0.7569 | F11: 0.04359889021 | H11: 0 | I11: 0 | J11: 30.3030303 | K11: 0 | L11: 0 | M11: 0 | N11: 23.93636364 | P11: -17.36053364 | Q11: -22.93636364 | R11: -23.93636364 | S11: 1145.899008 | T11: 1121.962645 | U11: 549.0131405 | W11: -0.2293636364 | X11: -0.1767559587 | Y11: 0.8134289729
A12: 10 | B12: 0.06 | C12: IN FINE | D12: 1.4101 | E12: 36 | F12: 0.0387 | H12: 36 | I12: 36 | J12: 16.66666667 | K12: 36 | L12: 24.03797468 | M12: 21.25135433 | N12: 18.40659451 | P12: -24.988073 | Q12: -17.72079957 | R12: -18.40659451 | S12: 506.2240333 | T12: 487.8174388 | U12: 149.0147174 | W12: -0.1772079957 | X12: -0.153747753 | Y12: -0.1559855724
A13: 11 | C13: ZC | D13: 0.8369 | E13: 8 | F13: 0.0225 | H13: 8 | I13: 8 | J13: 8 | K13: 8 | L13: 8 | M13: 8 | N13: 8 | P13: -6.548172881 | Q13: -7.82396088 | R13: -8 | S13: 72 | T13: 64 | U13: 0 | W13: -0.0782396088 | X13: -0.07479630084 | Y13: -0.07490560252
A14: 12 | B14: 0.035 | C14: IN FINE | D14: 1.0373 | E14: 22 | F14: 0.0326 | H14: 22 | I14: 22 | J14: 22 | K14: 22 | L14: 17.43220339 | M14: 16.6579803 | N14: 15.8268895 | P14: -15.89848435 | Q14: -15.32722207 | R14: -15.8268895 | S14: 321.5081031 | T14: 305.6812136 | U14: 55.19078221 | W14: -0.1532722207 | X14: -0.1381958195 | Y14: -0.1392307618
A15: 13 | B15: 0.043 | C15: SEA | D15: 1.1121 | E15: 15 | F15: 0.0268 | H15: 15 | I15: 7.5 | J15: 10.60082305 | K15: 8 | L15: 7.402777778 | M15: 7.162472537 | N15: 6.924273688 | P15: -7.499295683 | Q15: -6.743546638 | R15: -6.924273688 | S15: 72.70252379 | T15: 65.77825011 | U15: 17.83268399 | W15: -0.06743546638 | X15: -0.06398762108 | Y15: -0.06412677725
A16: 14 | C16: ZC | D16: 0.3636 | E16: 29 | F16: 0.0355 | H16: 29 | I16: 29 | J16: 29 | K16: 29 | L16: 29 | M16: 29 | N16: 29 | P16: -10.18344919 | Q16: -28.0057943 | R16: -29 | S16: 870 | T16: 841 | U16: 0 | W16: -0.280057943 | X16: -0.2394894337 | Y16: -0.2432439247
A17: 15 | C17: ZC | D17: 0.7163 | E17: 13 | F17: 0.026 | H17: 13 | I17: 13 | J17: 13 | K17: 13 | L17: 13 | M17: 13 | N17: 13 | P17: -9.075703547 | Q17: -12.6705653 | R17: -13 | S17: 182 | T17: 169 | U17: 0 | W17: -0.126705653 | X17: -0.1180610178 | Y17: -0.118466401
A18: 16 | B18: 0.022 | C18: RP | D18: 0.5023 | F18: 0.04379852678 | H18: 0 | I18: 0 | J18: 45.45454545 | K18: 0 | L18: 0 | M18: 0 | N18: 23.83181818 | P18: -11.46842227 | Q18: -22.83181818 | R18: -23.83181818 | S18: 1135.911116 | T18: 1112.079298 | U18: 544.1237397 | W18: -0.2283181818 | X18: -0.1761889897 | Y18: 0.8141213041
A19: 17 | C19: ZC | D19: 0.9257 | E19: 4 | F19: 0.0195 | H19: 4 | I19: 4 | J19: 4 | K19: 4 | L19: 4 | M19: 4 | N19: 4 | P19: -3.631816026 | Q19: -3.923491908 | R19: -4 | S19: 20 | T19: 16 | U19: 0 | W19: -0.03923491908 | X19: -0.03827280728 | Y19: -0.0382913625
A20: 18 | B20: 0.0485 | C20: IN FINE | D20: 1.0877 | E20: 3 | F20: 0.0182 | H20: 3 | I20: 3 | J20: 3 | K20: 3 | L20: 2.872981231 | M20: 2.871200983 | N20: =Age_Du1(B20,E20,F20,C20) -> 2.869404015 | P20: -3.065231775 | Q20: -2.818114334 | R20: -2.869404015 | S20: 11.30400994 | T20: 8.434605921 | U20: 0.2011265203 | W20: -0.02818114334 | X20: -0.02763596782 | Y20: -0.02764469516
F23: Macro fonctions
B25: Rdt ( prix ; taux coupon ; maturité ; type ) | J25: Ris_Var ( taux coupon ; maturité ; rendement ; type )
J26: Ris_Sen ( taux coupon ; maturité ; rendement ; type )
B27: Age_Vpr ( taux coupon ; maturité ; type ) | J27: Ris_Ela ( taux coupon ; maturité ; rendement ; type )
B28: Age_Dre ( taux coupon ; maturité ; type ) | J28: Ris_Cvx ( taux coupon ; maturité ; rendement ; type )
B29: Age_Vmo ( taux coupon ; maturité ; type ) | J29: Ris_Du2 ( taux coupon ; maturité ; rendement ; type )
B30: Age_Vmp ( taux coupon ; maturité ; type ) | J30: Ris_M2 ( taux coupon ; maturité ; rendement ; type )
B32: Age_Ech ( taux coupon ; maturité ; rendement ; type ) | J32: Var_Rel ( taux coupon ; maturité ; rendement ; type )
B33: Age_Du1 ( taux coupon ; maturité ; rendement ; type )

Sheet Calcul
C2: Calcul du prix, de la duration et de la convexité
E4: avant | I4: après
D5: r = | E5: 0.06 | H5: r* = | I5: =E5+E23 -> 0.062 | N5: ZC(4 ans)
D6: Fj | E6: Fj/(1+r)j | F6: j * Fj/(1+r)j | G6: j² * Fj/(1+r)j | I6: Fj/(1+r*)j | N6: Du = n | O6: 4
C7: 1 | D7: 0.058 | E7: =D7/(1+$E$5)^C7 -> 0.05471698113 | F7: =C7*E7 -> 0.05471698113 | G7: =C7*F7 -> 0.05471698113 | I7: =D7/(1+$I$5)^C7 -> 0.05461393597 | N7: Cvx n(n+1) | O7: 20
C8: 2 | D8: 0.058 | E8: =D8/(1+$E$5)^C8 -> 0.05161979352 | F8: =C8*E8 -> 0.103239587 | G8: =C8*F8 -> 0.2064791741 | I8: =D8/(1+$I$5)^C8 -> 0.05142555176 | N8: Vo(6%) | O8: =1/(1.06^4) -> 0.7920936632
C9: 3 | D9: 0.058 | E9: 0.04869791842 | F9: 0.1460937552 | G9: 0.4382812657 | I9: 0.04842330674 | N9: choc | O9: 0.02
C10: 4 | D10: 0.058 | E10: 0.04594143247 | F10: 0.1837657299 | G10: 0.7350629195 | I10: 0.04559633403 | N10: Vo(8%) | O10: =1/1.08^4 -> 0.7350298528
C11: 5 | D11: 0.058 | E11: 0.04334097403 | F11: 0.2167048701 | G11: 1.083524351 | I11: 0.04293440116
C12: 6 | D12: 0.058 | E12: 0.04088771135 | F12: 0.2453262681 | G12: 1.471957608 | I12: 0.04042787303 | N12: dVo / Vo | P12: =(O10-O8)/O8 -> -0.07204174593
C13: 7 | D13: 0.058 | E13: 0.03857331259 | F13: 0.2700131881 | G13: 1.890092317 | I13: 0.03806767706
C14: 8 | D14: 0.058 | E14: 0.03638991754 | F14: 0.2911193403 | G14: 2.328954722 | I14: 0.0358452703 | N14: dV/V = -Du d(1+r)/(1+r) | P14: =-4*2%/1.06 -> -0.07547169811
C15: 9 | D15: 0.058 | E15: 0.03433011088 | F15: 0.308970998 | G15: 2.780738982 | I15: 0.03375260857
C16: 10 | D16: 1.058 | E16: 0.590781674 | F16: 5.90781674 | G16: 59.0781674 | I16: 0.5797496568 | N16: dV/V [avec Du et Cvx] | P16: =P14+20/2*((2%)/1.06)^2 -> -0.07191171235
D19: Vo | E19: =SUM(E7:E16) -> 0.9852798259 | F19: =SUM(F7:F16)/E19 -> 7.843221037 | G19: =SUM(G7:G16)/E19 -> 71.11479792 | I19: =SUM(I7:I16) -> 0.9708366155
D20: DU | E20: =F19 -> 7.843221037
D21: CVX | E21: =E20+G19 -> 78.95801896
D23: d(1+r) | E23: 0.002 | G23: avec calcul matriciel
D24: dVo/Vo | G24: Vo | H24: =SUM(D7:D16/(1+E5)^(C7:C16)) -> 0.9852798259
D25: exact | E25: =(I19-E19)/E19 -> -0.01465899338 | G25: DU | H25: =SUM((D7:D16*C7:C16)/(1+E5)^(C7:C16))/H24 -> 7.843221037
D26: proxy D | E26: =-E20*(E23/(1+E5)) -> -0.01479853026 | G26: CVX | H26: =SUM((D7:D16*C7:C16*C7:C16)/(1+E5)^(C7:C16))/H24+H25 -> 78.95801896
D27: Proxy D + Cvx | E27: =E26+(E21/2)*(E23/(1+E5))^2 -> -0.01465798555
